{"text_format":"1","workbook":"xlsx","n_sheets":6,"sheets":["الصفحة الرئيسية","التشغيل اليومي","3.11,2018","03.11.2018","نمودج الاستقبال","بيان الورديات"],"not_rendered":{"charts":0,"images":3,"macros":1,"external_links":0,"defined_names":0,"comments":0,"pivot_tables":0},"unopened":[],"bounds":{"document_bytes":16777216,"sheet_cells":100000,"rows_first":2000,"rows_last":500,"rows_between":2000,"halvings":0,"cell_chars":16384,"cell_head_chars":4096},"cells_cut":0,"cells_raw":0,"read":"whole","date_system":"1900"}

{"sheet":"الصفحة الرئيسية","index":0,"n_rows":3,"n_cols":16,"rows_kept":3,"cut":false,"hidden":false,"merged":[]}
[]
[null,"التقارير اليومية",null,null,null,null,null,null,null,null,null,null,null,null,null,"تقارير التحركات اليومية"]
[null,"4نوفمبر2018"]

{"sheet":"التشغيل اليومي","index":1,"n_rows":1159,"n_cols":39,"rows_kept":1159,"cut":false,"hidden":false,"merged":[[3,0,3,38]]}
[]
[]
[]
["بيان التشغيل اليومي لموسم عمرة عام 1440هـ"]
["فوج","الوكيل","دولة الوكيل","العدد","الخطوط","رقم الرحلة","الصالة","وقت الرحلة","تاريخ الحركة",null,null,null,"رقم المجموعه","الوقت","الحركة من","الحركة إلى","تعميد","الشركة الناقلة","الحافلات","السائق","جوال","البودي","السائق","جوال","البودي","السائق","جوال","البودي","السائق","جوال","البودي","المشرف","جوال","فندق مكة","فندق المدينة","الحجز","الغرف","نوعية الغرف","ملاحظات"]
[1,"أنور سيرفز","باكستان",7,"GF-171","GF-183","الشمالية","15:40:00","2018-10-20",{"$f":"TODAY()>=I6","v":true},{"$f":"I6-TODAY()<=1","v":true},{"$f":"AND((I6-TODAY())<=1,TODAY()<I6)","v":false},"6709 /6696","15:40:00","مطار جده","مكه المكرمه",null,"خاص",1,null,null,null,null,null,null,null,null,null,null,null,null,null,null,"ثروات الفردوس",null,null,1,"رباعي"]
[1,"أنور سيرفز","باكستان",7,"GF-171","GF-183","الشمالية",null,"2018-10-22",true,true,false,"6709 /6696","06:30:00","مكة المكرمه","المدينه المنورة",null,"خاص",1,null,null,null,null,null,null,null,null,null,null,null,null,null,null,"ثروات الفردوس","فندق ساتر",null,1,"رباعي"]
[1,"أنور سيرفز","باكستان",7,"GF-171","GF-183","الشمالية",null,"2018-10-30",true,true,false,"6709 /6696","06:30:00","المدينة المنورة","مكه المكرمه",null,"خاص",1,null,null,null,null,null,null,null,null,null,null,null,null,null,null,"ثروات الفردوس","فندق ساتر"]
[1,"أنور سيرفز","باكستان",7,"GF-171","GF-174","الشمالية","23:30:00","2018-11-03",true,true,false,"6709 /6696","21:30:00","مكة المكرمه","مطار جده",null,"خاص",1,null,null,null,null,null,null,null,null,null,null,null,null,null,null,"ثروات الفردوس"]
[2,"أنور سيرفز","باكستان",2,"السعودية","sv-701","الشمالية","12:25:00","2018-10-25",true,true,false,6696,"14:30:00","مطار جدة","مكه المكرمه",null,"خاص",1,null,null,null,null,null,null,null,null,null,null,null,null,null,null,"ثروات الخليل"]
[2,"أنور سيرفز","باكستان",2,"السعودية","sv-701",null,null,"2018-10-28",true,true,false,6696,"06:30:00","مكة المكرمه","المدينه المنورة",null,"خاص",1,null,null,null,null,null,null,null,null,null,null,null,null,null,null,"ثروات الخليل","السمان الجديد",null,1,"رباعي"]
[2,"أنور سيرفز","باكستان",2,"السعودية","sv-701",null,null,"2018-11-05",false,false,false,6696,"06:30:00","المدينة المنورة","مكه المكرمه",null,"خاص",1,null,null,null,null,null,null,null,null,null,null,null,null,null,null,"ثروات الخليل","السمان الجديد"]
[2,"أنور سيرفز","باكستان",2,"السعودية","sv-700",null,"04:45:00","2018-11-08",false,false,false,6696,"22:25:00","مكة المكرمه","مطار جده",null,"خاص",1,null,null,null,null,null,null,null,null,null,null,null,null,null,null,"ثروات الخليل"]
[null,null,null,null,null,null,null,null,"2018-10-30",true,true,false]
[null,null,null,null,null,null,null,null,null,true,true,false]
[null,null,null,null,null,null,null,null,null,true,true,false]
[null,null,null,null,null,null,null,null,null,true,true,false]
[null,null,null,null,null,null,null,null,null,true,true,false]
[null,null,null,null,null,null,null,null,null,true,true,false]
[null,null,null,null,null,null,null,null,null,true,true,false]
[null,null,null,null,null,null,null,null,null,true,true,false]
[null,null,null,null,null,null,null,null,null,true,true,false]
[null,null,null,null,null,null,null,null,null,true,true,false]
[null,null,null,null,null,null,null,null,null,true,true,false]
[null,null,null,null,null,null,null,null,null,true,true,false]
[null,null,null,null,null,null,null,null,null,true,true,false]
[null,null,null,null,null,null,null,null,null,true,true,false]
[null,null,null,null,null,null,null,null,null,true,true,false]
[null,null,null,null,null,null,null,null,null,true,true,false]
[null,null,null,null,null,null,null,null,null,true,true,false]
[null,null,null,null,null,null,null,null,null,true,true,false]
[null,null,null,null,null,null,null,null,null,true,true,false]
[null,null,null,null,null,null,null,null,null,true,true,false]
[null,null,null,null,null,null,null,null,null,true,true,false]
[null,null,null,null,null,null,null,null,null,true,true,false]
[null,null,null,null,null,null,null,null,null,true,true,false]
[null,null,null,null,null,null,null,null,null,true,true,false]
[null,null,null,null,null,null,null,null,null,true,true,false]
[null,null,null,null,null,null,null,null,null,true,true,false]
[null,null,null,null,null,null,null,null,null,true,true,false]
[null,null,null,null,null,null,null,null,null,true,true,false]
[null,null,null,null,null,null,null,null,null,true,true,false]
[null,null,null,null,null,null,null,null,null,true,true,false]
[null,null,null,null,null,null,null,null,null,true,true,false]
[null,null,null,null,null,null,null,null,null,true,true,false]
[null,null,null,null,null,null,null,null,null,true,true,false]
[null,null,null,null,null,null,null,null,null,true,true,false]
[null,null,null,null,null,null,null,null,null,true,true,false]
[null,null,null,null,null,null,null,null,null,true,true,false]
[null,null,null,null,null,null,null,null,null,true,true,false]
[null,null,null,null,null,null,null,null,null,true,true,false]
[null,null,null,null,null,null,null,null,null,true,true,false]
[null,null,null,null,null,null,null,null,null,true,true,false]
[null,null,null,null,null,null,null,null,null,true,true,false]
[null,null,null,null,null,null,null,null,null,true,true,false]
[null,null,null,null,null,null,null,null,null,true,true,false]
[null,null,null,null,null,null,null,null,null,true,true,false]
[null,null,null,null,null,null,null,null,null,true,true,false]
[null,null,null,null,null,null,null,null,null,true,true,false]
[null,null,null,null,null,null,null,null,null,true,true,false]
[null,null,null,null,null,null,null,null,null,true,true,false]
[null,null,null,null,null,null,null,null,null,true,true,false]
[null,null,null,null,null,null,null,null,null,true,true,false]
[null,null,null,null,null,null,null,null,null,true,true,false]
[null,null,null,null,null,null,null,null,null,true,true,false]
[null,null,null,null,null,null,null,null,null,true,true,false]
[null,null,null,null,null,null,null,null,null,true,true,false]
[null,null,null,null,null,null,null,null,null,true,true,false]
[null,null,null,null,null,null,null,null,null,true,true,false]
[null,null,null,null,null,null,null,null,null,{"$f":"TODAY()>=I70","v":true},{"$f":"I70-TODAY()<=1","v":true},{"$f":"AND((I70-TODAY())<=1,TODAY()<I70)","v":false}]
[null,null,null,null,null,null,null,null,null,true,true,false]
[null,null,null,null,null,null,null,null,null,true,true,false]
[null,null,null,null,null,null,null,null,null,true,true,false]
[null,null,null,null,null,null,null,null,null,true,true,false]
[null,null,null,null,null,null,null,null,null,true,true,false]
[null,null,null,null,null,null,null,null,null,true,true,false]
[null,null,null,null,null,null,null,null,null,true,true,false]
[null,null,null,null,null,null,null,null,null,true,true,false]
[null,null,null,null,null,null,null,null,null,true,true,false]
[null,null,null,null,null,null,null,null,null,true,true,false]
[null,null,null,null,null,null,null,null,null,true,true,false]
[null,null,null,null,null,null,null,null,null,true,true,false]
[null,null,null,null,null,null,null,null,null,true,true,false]
[null,null,null,null,null,null,null,null,null,true,true,false]
[null,null,null,null,null,null,null,null,null,true,true,false]
[null,null,null,null,null,null,null,null,null,true,true,false]
[null,null,null,null,null,null,null,null,null,true,true,false]
[null,null,null,null,null,null,null,null,null,true,true,false]
[null,null,null,null,null,null,null,null,null,true,true,false]
[null,null,null,null,null,null,null,null,null,true,true,false]
[null,null,null,null,null,null,null,null,null,true,true,false]
[null,null,null,null,null,null,null,null,null,true,true,false]
[null,null,null,null,null,null,null,null,null,true,true,false]
[null,null,null,null,null,null,null,null,null,true,true,false]
[null,null,null,null,null,null,null,null,null,true,true,false]
[null,null,null,null,null,null,null,null,null,true,true,false]
[null,null,null,null,null,null,null,null,null,true,true,false]
[null,null,null,null,null,null,null,null,null,true,true,false]
[null,null,null,null,null,null,null,null,null,true,true,false]
[null,null,null,null,null,null,null,null,null,true,true,false]
[null,null,null,null,null,null,null,null,null,true,true,false]
[null,null,null,null,null,null,null,null,null,true,true,false]
[null,null,null,null,null,null,null,null,null,true,true,false]
[null,null,null,null,null,null,null,null,null,true,true,false]
[null,null,null,null,null,null,null,null,null,true,true,false]
[null,null,null,null,null,null,null,null,null,true,true,false]
[null,null,null,null,null,null,null,null,null,true,true,false]
[null,null,null,null,null,null,null,null,null,true,true,false]
[null,null,null,null,null,null,null,null,null,true,true,false]
[null,null,null,null,null,null,null,null,null,true,true,false]
[null,null,null,null,null,null,null,null,null,true,true,false]
[null,null,null,null,null,null,null,null,null,true,true,false]
[null,null,null,null,null,null,null,null,null,true,true,false]
[null,null,null,null,null,null,null,null,null,true,true,false]
[null,null,null,null,null,null,null,null,null,true,true,false]
[null,null,null,null,null,null,null,null,null,true,true,false]
[null,null,null,null,null,null,null,null,null,true,true,false]
[null,null,null,null,null,null,null,null,null,true,true,false]
[null,null,null,null,null,null,null,null,null,true,true,false]
[null,null,null,null,null,null,null,null,null,true,true,false]
[null,null,null,null,null,null,null,null,null,true,true,false]
[null,null,null,null,null,null,null,null,null,true,true,false]
[null,null,null,null,null,null,null,null,null,true,true,false]
[null,null,null,null,null,null,null,null,null,true,true,false]
[null,null,null,null,null,null,null,null,null,true,true,false]
[null,null,null,null,null,null,null,null,null,true,true,false]
[null,null,null,null,null,null,null,null,null,true,true,false]
[null,null,null,null,null,null,null,null,null,true,true,false]
[null,null,null,null,null,null,null,null,null,true,true,false]
[null,null,null,null,null,null,null,null,null,true,true,false]
[null,null,null,null,null,null,null,null,null,true,true,false]
[null,null,null,null,null,null,null,null,null,true,true,false]
[null,null,null,null,null,null,null,null,null,true,true,false]
[null,null,null,null,null,null,null,null,null,{"$f":"TODAY()>=I134","v":true},{"$f":"I134-TODAY()<=1","v":true},{"$f":"AND((I134-TODAY())<=1,TODAY()<I134)","v":false}]
[null,null,null,null,null,null,null,null,null,true,true,false]
[null,null,null,null,null,null,null,null,null,true,true,false]
[null,null,null,null,null,null,null,null,null,true,true,false]
[null,null,null,null,null,null,null,null,null,true,true,false]
[null,null,null,null,null,null,null,null,null,true,true,false]
[null,null,null,null,null,null,null,null,null,true,true,false]
[null,null,null,null,null,null,null,null,null,true,true,false]
[null,null,null,null,null,null,null,null,null,true,true,false]
[null,null,null,null,null,null,null,null,null,true,true,false]
[null,null,null,null,null,null,null,null,null,true,true,false]
[null,null,null,null,null,null,null,null,null,true,true,false]
[null,null,null,null,null,null,null,null,null,true,true,false]
[null,null,null,null,null,null,null,null,null,true,true,false]
[null,null,null,null,null,null,null,null,null,true,true,false]
[null,null,null,null,null,null,null,null,null,true,true,false]
[null,null,null,null,null,null,null,null,null,true,true,false]
[null,null,null,null,null,null,null,null,null,true,true,false]
[null,null,null,null,null,null,null,null,null,true,true,false]
[null,null,null,null,null,null,null,null,null,true,true,false]
[null,null,null,null,null,null,null,null,null,true,true,false]
[null,null,null,null,null,null,null,null,null,true,true,false]
[null,null,null,null,null,null,null,null,null,true,true,false]
[null,null,null,null,null,null,null,null,null,true,true,false]
[null,null,null,null,null,null,null,null,null,true,true,false]
[null,null,null,null,null,null,null,null,null,true,true,false]
[null,null,null,null,null,null,null,null,null,true,true,false]
[null,null,null,null,null,null,null,null,null,true,true,false]
[null,null,null,null,null,null,null,null,null,true,true,false]
[null,null,null,null,null,null,null,null,null,true,true,false]
[null,null,null,null,null,null,null,null,null,true,true,false]
[null,null,null,null,null,null,null,null,null,true,true,false]
[null,null,null,null,null,null,null,null,null,true,true,false]
[null,null,null,null,null,null,null,null,null,true,true,false]
[null,null,null,null,null,null,null,null,null,true,true,false]
[null,null,null,null,null,null,null,null,null,true,true,false]
[null,null,null,null,null,null,null,null,null,true,true,false]
[null,null,null,null,null,null,null,null,null,true,true,false]
[null,null,null,null,null,null,null,null,null,true,true,false]
[null,null,null,null,null,null,null,null,null,true,true,false]
[null,null,null,null,null,null,null,null,null,true,true,false]
[null,null,null,null,null,null,null,null,null,true,true,false]
[null,null,null,null,null,null,null,null,null,true,true,false]
[null,null,null,null,null,null,null,null,null,true,true,false]
[null,null,null,null,null,null,null,null,null,true,true,false]
[null,null,null,null,null,null,null,null,null,true,true,false]
[null,null,null,null,null,null,null,null,null,true,true,false]
[null,null,null,null,null,null,null,null,null,true,true,false]
[null,null,null,null,null,null,null,null,null,true,true,false]
[null,null,null,null,null,null,null,null,null,true,true,false]
[null,null,null,null,null,null,null,null,null,true,true,false]
[null,null,null,null,null,null,null,null,null,true,true,false]
[null,null,null,null,null,null,null,null,null,true,true,false]
[null,null,null,null,null,null,null,null,null,true,true,false]
[null,null,null,null,null,null,null,null,null,true,true,false]
[null,null,null,null,null,null,null,null,null,true,true,false]
[null,null,null,null,null,null,null,null,null,true,true,false]
[null,null,null,null,null,null,null,null,null,true,true,false]
[null,null,null,null,null,null,null,null,null,true,true,false]
[null,null,null,null,null,null,null,null,null,true,true,false]
[null,null,null,null,null,null,null,null,null,true,true,false]
[null,null,null,null,null,null,null,null,null,true,true,false]
[null,null,null,null,null,null,null,null,null,true,true,false]
[null,null,null,null,null,null,null,null,null,true,true,false]
[null,null,null,null,null,null,null,null,null,{"$f":"TODAY()>=I198","v":true},{"$f":"I198-TODAY()<=1","v":true},{"$f":"AND((I198-TODAY())<=1,TODAY()<I198)","v":false}]
[null,null,null,null,null,null,null,null,null,true,true,false]
[null,null,null,null,null,null,null,null,null,true,true,false]
[null,null,null,null,null,null,null,null,null,true,true,false]
[null,null,null,null,null,null,null,null,null,true,true,false]
[null,null,null,null,null,null,null,null,null,true,true,false]
[null,null,null,null,null,null,null,null,null,true,true,false]
[null,null,null,null,null,null,null,null,null,true,true,false]
[null,null,null,null,null,null,null,null,null,true,true,false]
[null,null,null,null,null,null,null,null,null,true,true,false]
[null,null,null,null,null,null,null,null,null,true,true,false]
[null,null,null,null,null,null,null,null,null,true,true,false]
[null,null,null,null,null,null,null,null,null,true,true,false]
[null,null,null,null,null,null,null,null,null,true,true,false]
[null,null,null,null,null,null,null,null,null,true,true,false]
[null,null,null,null,null,null,null,null,null,true,true,false]
[null,null,null,null,null,null,null,null,null,true,true,false]
[null,null,null,null,null,null,null,null,null,true,true,false]
[null,null,null,null,null,null,null,null,null,true,true,false]
[null,null,null,null,null,null,null,null,null,true,true,false]
[null,null,null,null,null,null,null,null,null,true,true,false]
[null,null,null,null,null,null,null,null,null,true,true,false]
[null,null,null,null,null,null,null,null,null,true,true,false]
[null,null,null,null,null,null,null,null,null,true,true,false]
[null,null,null,null,null,null,null,null,null,true,true,false]
[null,null,null,null,null,null,null,null,null,true,true,false]
[null,null,null,null,null,null,null,null,null,true,true,false]
[null,null,null,null,null,null,null,null,null,true,true,false]
[null,null,null,null,null,null,null,null,null,true,true,false]
[null,null,null,null,null,null,null,null,null,true,true,false]
[null,null,null,null,null,null,null,null,null,true,true,false]
[null,null,null,null,null,null,null,null,null,true,true,false]
[null,null,null,null,null,null,null,null,null,true,true,false]
[null,null,null,null,null,null,null,null,null,true,true,false]
[null,null,null,null,null,null,null,null,null,true,true,false]
[null,null,null,null,null,null,null,null,null,true,true,false]
[null,null,null,null,null,null,null,null,null,true,true,false]
[null,null,null,null,null,null,null,null,null,true,true,false]
[null,null,null,null,null,null,null,null,null,true,true,false]
[null,null,null,null,null,null,null,null,null,true,true,false]
[null,null,null,null,null,null,null,null,null,true,true,false]
[null,null,null,null,null,null,null,null,null,true,true,false]
[null,null,null,null,null,null,null,null,null,true,true,false]
[null,null,null,null,null,null,null,null,null,true,true,false]
[null,null,null,null,null,null,null,null,null,true,true,false]
[null,null,null,null,null,null,null,null,null,true,true,false]
[null,null,null,null,null,null,null,null,null,true,true,false]
[null,null,null,null,null,null,null,null,null,true,true,false]
[null,null,null,null,null,null,null,null,null,true,true,false]
[null,null,null,null,null,null,null,null,null,true,true,false]
[null,null,null,null,null,null,null,null,null,true,true,false]
[null,null,null,null,null,null,null,null,null,true,true,false]
[null,null,null,null,null,null,null,null,null,true,true,false]
[null,null,null,null,null,null,null,null,null,true,true,false]
[null,null,null,null,null,null,null,null,null,true,true,false]
[null,null,null,null,null,null,null,null,null,true,true,false]
[null,null,null,null,null,null,null,null,null,true,true,false]
[null,null,null,null,null,null,null,null,null,true,true,false]
[null,null,null,null,null,null,null,null,null,true,true,false]
[null,null,null,null,null,null,null,null,null,true,true,false]
[null,null,null,null,null,null,null,null,null,true,true,false]
[null,null,null,null,null,null,null,null,null,true,true,false]
[null,null,null,null,null,null,null,null,null,true,true,false]
[null,null,null,null,null,null,null,null,null,true,true,false]
[null,null,null,null,null,null,null,null,null,{"$f":"TODAY()>=I262","v":true},{"$f":"I262-TODAY()<=1","v":true},{"$f":"AND((I262-TODAY())<=1,TODAY()<I262)","v":false}]
[null,null,null,null,null,null,null,null,null,true,true,false]
[null,null,null,null,null,null,null,null,null,true,true,false]
[null,null,null,null,null,null,null,null,null,true,true,false]
[null,null,null,null,null,null,null,null,null,true,true,false]
[null,null,null,null,null,null,null,null,null,true,true,false]
[null,null,null,null,null,null,null,null,null,true,true,false]
[null,null,null,null,null,null,null,null,null,true,true,false]
[null,null,null,null,null,null,null,null,null,true,true,false]
[null,null,null,null,null,null,null,null,null,true,true,false]
[null,null,null,null,null,null,null,null,null,true,true,false]
[null,null,null,null,null,null,null,null,null,true,true,false]
[null,null,null,null,null,null,null,null,null,true,true,false]
[null,null,null,null,null,null,null,null,null,true,true,false]
[null,null,null,null,null,null,null,null,null,true,true,false]
[null,null,null,null,null,null,null,null,null,true,true,false]
[null,null,null,null,null,null,null,null,null,true,true,false]
[null,null,null,null,null,null,null,null,null,true,true,false]
[null,null,null,null,null,null,null,null,null,true,true,false]
[null,null,null,null,null,null,null,null,null,true,true,false]
[null,null,null,null,null,null,null,null,null,true,true,false]
[null,null,null,null,null,null,null,null,null,true,true,false]
[null,null,null,null,null,null,null,null,null,true,true,false]
[null,null,null,null,null,null,null,null,null,true,true,false]
[null,null,null,null,null,null,null,null,null,true,true,false]
[null,null,null,null,null,null,null,null,null,true,true,false]
[null,null,null,null,null,null,null,null,null,true,true,false]
[null,null,null,null,null,null,null,null,null,true,true,false]
[null,null,null,null,null,null,null,null,null,true,true,false]
[null,null,null,null,null,null,null,null,null,true,true,false]
[null,null,null,null,null,null,null,null,null,true,true,false]
[null,null,null,null,null,null,null,null,null,true,true,false]
[null,null,null,null,null,null,null,null,null,true,true,false]
[null,null,null,null,null,null,null,null,null,true,true,false]
[null,null,null,null,null,null,null,null,null,true,true,false]
[null,null,null,null,null,null,null,null,null,true,true,false]
[null,null,null,null,null,null,null,null,null,true,true,false]
[null,null,null,null,null,null,null,null,null,true,true,false]
[null,null,null,null,null,null,null,null,null,true,true,false]
[null,null,null,null,null,null,null,null,null,true,true,false]
[null,null,null,null,null,null,null,null,null,true,true,false]
[null,null,null,null,null,null,null,null,null,true,true,false]
[null,null,null,null,null,null,null,null,null,true,true,false]
[null,null,null,null,null,null,null,null,null,true,true,false]
[null,null,null,null,null,null,null,null,null,true,true,false]
[null,null,null,null,null,null,null,null,null,true,true,false]
[null,null,null,null,null,null,null,null,null,true,true,false]
[null,null,null,null,null,null,null,null,null,true,true,false]
[null,null,null,null,null,null,null,null,null,true,true,false]
[null,null,null,null,null,null,null,null,null,true,true,false]
[null,null,null,null,null,null,null,null,null,true,true,false]
[null,null,null,null,null,null,null,null,null,true,true,false]
[null,null,null,null,null,null,null,null,null,true,true,false]
[null,null,null,null,null,null,null,null,null,true,true,false]
[null,null,null,null,null,null,null,null,null,true,true,false]
[null,null,null,null,null,null,null,null,null,true,true,false]
[null,null,null,null,null,null,null,null,null,true,true,false]
[null,null,null,null,null,null,null,null,null,true,true,false]
[null,null,null,null,null,null,null,null,null,true,true,false]
[null,null,null,null,null,null,null,null,null,true,true,false]
[null,null,null,null,null,null,null,null,null,true,true,false]
[null,null,null,null,null,null,null,null,null,true,true,false]
[null,null,null,null,null,null,null,null,null,true,true,false]
[null,null,null,null,null,null,null,null,null,true,true,false]
[null,null,null,null,null,null,null,null,null,{"$f":"TODAY()>=I326","v":true},{"$f":"I326-TODAY()<=1","v":true},{"$f":"AND((I326-TODAY())<=1,TODAY()<I326)","v":false}]
[null,null,null,null,null,null,null,null,null,true,true,false]
[null,null,null,null,null,null,null,null,null,true,true,false]
[null,null,null,null,null,null,null,null,null,true,true,false]
[null,null,null,null,null,null,null,null,null,true,true,false]
[null,null,null,null,null,null,null,null,null,true,true,false]
[null,null,null,null,null,null,null,null,null,true,true,false]
[null,null,null,null,null,null,null,null,null,true,true,false]
[null,null,null,null,null,null,null,null,null,true,true,false]
[null,null,null,null,null,null,null,null,null,true,true,false]
[null,null,null,null,null,null,null,null,null,true,true,false]
[null,null,null,null,null,null,null,null,null,true,true,false]
[null,null,null,null,null,null,null,null,null,true,true,false]
[null,null,null,null,null,null,null,null,null,true,true,false]
[null,null,null,null,null,null,null,null,null,true,true,false]
[null,null,null,null,null,null,null,null,null,true,true,false]
[null,null,null,null,null,null,null,null,null,true,true,false]
[null,null,null,null,null,null,null,null,null,true,true,false]
[null,null,null,null,null,null,null,null,null,true,true,false]
[null,null,null,null,null,null,null,null,null,true,true,false]
[null,null,null,null,null,null,null,null,null,true,true,false]
[null,null,null,null,null,null,null,null,null,true,true,false]
[null,null,null,null,null,null,null,null,null,true,true,false]
[null,null,null,null,null,null,null,null,null,true,true,false]
[null,null,null,null,null,null,null,null,null,true,true,false]
[null,null,null,null,null,null,null,null,null,true,true,false]
[null,null,null,null,null,null,null,null,null,true,true,false]
[null,null,null,null,null,null,null,null,null,true,true,false]
[null,null,null,null,null,null,null,null,null,true,true,false]
[null,null,null,null,null,null,null,null,null,true,true,false]
[null,null,null,null,null,null,null,null,null,true,true,false]
[null,null,null,null,null,null,null,null,null,true,true,false]
[null,null,null,null,null,null,null,null,null,true,true,false]
[null,null,null,null,null,null,null,null,null,true,true,false]
[null,null,null,null,null,null,null,null,null,true,true,false]
[null,null,null,null,null,null,null,null,null,true,true,false]
[null,null,null,null,null,null,null,null,null,true,true,false]
[null,null,null,null,null,null,null,null,null,true,true,false]
[null,null,null,null,null,null,null,null,null,true,true,false]
[null,null,null,null,null,null,null,null,null,true,true,false]
[null,null,null,null,null,null,null,null,null,true,true,false]
[null,null,null,null,null,null,null,null,null,true,true,false]
[null,null,null,null,null,null,null,null,null,true,true,false]
[null,null,null,null,null,null,null,null,null,true,true,false]
[null,null,null,null,null,null,null,null,null,true,true,false]
[null,null,null,null,null,null,null,null,null,true,true,false]
[null,null,null,null,null,null,null,null,null,true,true,false]
[null,null,null,null,null,null,null,null,null,true,true,false]
[null,null,null,null,null,null,null,null,null,true,true,false]
[null,null,null,null,null,null,null,null,null,true,true,false]
[null,null,null,null,null,null,null,null,null,true,true,false]
[null,null,null,null,null,null,null,null,null,true,true,false]
[null,null,null,null,null,null,null,null,null,true,true,false]
[null,null,null,null,null,null,null,null,null,true,true,false]
[null,null,null,null,null,null,null,null,null,true,true,false]
[null,null,null,null,null,null,null,null,null,true,true,false]
[null,null,null,null,null,null,null,null,null,true,true,false]
[null,null,null,null,null,null,null,null,null,true,true,false]
[null,null,null,null,null,null,null,null,null,true,true,false]
[null,null,null,null,null,null,null,null,null,true,true,false]
[null,null,null,null,null,null,null,null,null,true,true,false]
[null,null,null,null,null,null,null,null,null,true,true,false]
[null,null,null,null,null,null,null,null,null,true,true,false]
[null,null,null,null,null,null,null,null,null,true,true,false]
[null,null,null,null,null,null,null,null,null,{"$f":"TODAY()>=I390","v":true},{"$f":"I390-TODAY()<=1","v":true},{"$f":"AND((I390-TODAY())<=1,TODAY()<I390)","v":false}]
[null,null,null,null,null,null,null,null,null,true,true,false]
[null,null,null,null,null,null,null,null,null,true,true,false]
[null,null,null,null,null,null,null,null,null,true,true,false]
[null,null,null,null,null,null,null,null,null,true,true,false]
[null,null,null,null,null,null,null,null,null,true,true,false]
[null,null,null,null,null,null,null,null,null,true,true,false]
[null,null,null,null,null,null,null,null,null,true,true,false]
[null,null,null,null,null,null,null,null,null,true,true,false]
[null,null,null,null,null,null,null,null,null,true,true,false]
[null,null,null,null,null,null,null,null,null,true,true,false]
[null,null,null,null,null,null,null,null,null,true,true,false]
[null,null,null,null,null,null,null,null,null,true,true,false]
[null,null,null,null,null,null,null,null,null,true,true,false]
[null,null,null,null,null,null,null,null,null,true,true,false]
[null,null,null,null,null,null,null,null,null,true,true,false]
[null,null,null,null,null,null,null,null,null,true,true,false]
[null,null,null,null,null,null,null,null,null,true,true,false]
[null,null,null,null,null,null,null,null,null,true,true,false]
[null,null,null,null,null,null,null,null,null,true,true,false]
[null,null,null,null,null,null,null,null,null,true,true,false]
[null,null,null,null,null,null,null,null,null,true,true,false]
[null,null,null,null,null,null,null,null,null,true,true,false]
[null,null,null,null,null,null,null,null,null,true,true,false]
[null,null,null,null,null,null,null,null,null,true,true,false]
[null,null,null,null,null,null,null,null,null,true,true,false]
[null,null,null,null,null,null,null,null,null,true,true,false]
[null,null,null,null,null,null,null,null,null,true,true,false]
[null,null,null,null,null,null,null,null,null,true,true,false]
[null,null,null,null,null,null,null,null,null,true,true,false]
[null,null,null,null,null,null,null,null,null,true,true,false]
[null,null,null,null,null,null,null,null,null,true,true,false]
[null,null,null,null,null,null,null,null,null,true,true,false]
[null,null,null,null,null,null,null,null,null,true,true,false]
[null,null,null,null,null,null,null,null,null,true,true,false]
[null,null,null,null,null,null,null,null,null,true,true,false]
[null,null,null,null,null,null,null,null,null,true,true,false]
[null,null,null,null,null,null,null,null,null,true,true,false]
[null,null,null,null,null,null,null,null,null,true,true,false]
[null,null,null,null,null,null,null,null,null,true,true,false]
[null,null,null,null,null,null,null,null,null,true,true,false]
[null,null,null,null,null,null,null,null,null,true,true,false]
[null,null,null,null,null,null,null,null,null,true,true,false]
[null,null,null,null,null,null,null,null,null,true,true,false]
[null,null,null,null,null,null,null,null,null,true,true,false]
[null,null,null,null,null,null,null,null,null,true,true,false]
[null,null,null,null,null,null,null,null,null,true,true,false]
[null,null,null,null,null,null,null,null,null,true,true,false]
[null,null,null,null,null,null,null,null,null,true,true,false]
[null,null,null,null,null,null,null,null,null,true,true,false]
[null,null,null,null,null,null,null,null,null,true,true,false]
[null,null,null,null,null,null,null,null,null,true,true,false]
[null,null,null,null,null,null,null,null,null,true,true,false]
[null,null,null,null,null,null,null,null,null,true,true,false]
[null,null,null,null,null,null,null,null,null,true,true,false]
[null,null,null,null,null,null,null,null,null,true,true,false]
[null,null,null,null,null,null,null,null,null,true,true,false]
[null,null,null,null,null,null,null,null,null,true,true,false]
[null,null,null,null,null,null,null,null,null,true,true,false]
[null,null,null,null,null,null,null,null,null,true,true,false]
[null,null,null,null,null,null,null,null,null,true,true,false]
[null,null,null,null,null,null,null,null,null,true,true,false]
[null,null,null,null,null,null,null,null,null,true,true,false]
[null,null,null,null,null,null,null,null,null,true,true,false]
[null,null,null,null,null,null,null,null,null,{"$f":"TODAY()>=I454","v":true},{"$f":"I454-TODAY()<=1","v":true},{"$f":"AND((I454-TODAY())<=1,TODAY()<I454)","v":false}]
[null,null,null,null,null,null,null,null,null,true,true,false]
[null,null,null,null,null,null,null,null,null,true,true,false]
[null,null,null,null,null,null,null,null,null,true,true,false]
[null,null,null,null,null,null,null,null,null,true,true,false]
[null,null,null,null,null,null,null,null,null,true,true,false]
[null,null,null,null,null,null,null,null,null,true,true,false]
[null,null,null,null,null,null,null,null,null,true,true,false]
[null,null,null,null,null,null,null,null,null,true,true,false]
[null,null,null,null,null,null,null,null,null,true,true,false]
[null,null,null,null,null,null,null,null,null,true,true,false]
[null,null,null,null,null,null,null,null,null,true,true,false]
[null,null,null,null,null,null,null,null,null,true,true,false]
[null,null,null,null,null,null,null,null,null,true,true,false]
[null,null,null,null,null,null,null,null,null,true,true,false]
[null,null,null,null,null,null,null,null,null,true,true,false]
[null,null,null,null,null,null,null,null,null,true,true,false]
[null,null,null,null,null,null,null,null,null,true,true,false]
[null,null,null,null,null,null,null,null,null,true,true,false]
[null,null,null,null,null,null,null,null,null,true,true,false]
[null,null,null,null,null,null,null,null,null,true,true,false]
[null,null,null,null,null,null,null,null,null,true,true,false]
[null,null,null,null,null,null,null,null,null,true,true,false]
[null,null,null,null,null,null,null,null,null,true,true,false]
[null,null,null,null,null,null,null,null,null,true,true,false]
[null,null,null,null,null,null,null,null,null,true,true,false]
[null,null,null,null,null,null,null,null,null,true,true,false]
[null,null,null,null,null,null,null,null,null,true,true,false]
[null,null,null,null,null,null,null,null,null,true,true,false]
[null,null,null,null,null,null,null,null,null,true,true,false]
[null,null,null,null,null,null,null,null,null,true,true,false]
[null,null,null,null,null,null,null,null,null,true,true,false]
[null,null,null,null,null,null,null,null,null,true,true,false]
[null,null,null,null,null,null,null,null,null,true,true,false]
[null,null,null,null,null,null,null,null,null,true,true,false]
[null,null,null,null,null,null,null,null,null,true,true,false]
[null,null,null,null,null,null,null,null,null,true,true,false]
[null,null,null,null,null,null,null,null,null,true,true,false]
[null,null,null,null,null,null,null,null,null,true,true,false]
[null,null,null,null,null,null,null,null,null,true,true,false]
[null,null,null,null,null,null,null,null,null,true,true,false]
[null,null,null,null,null,null,null,null,null,true,true,false]
[null,null,null,null,null,null,null,null,null,true,true,false]
[null,null,null,null,null,null,null,null,null,true,true,false]
[null,null,null,null,null,null,null,null,null,true,true,false]
[null,null,null,null,null,null,null,null,null,true,true,false]
[null,null,null,null,null,null,null,null,null,true,true,false]
[null,null,null,null,null,null,null,null,null,true,true,false]
[null,null,null,null,null,null,null,null,null,true,true,false]
[null,null,null,null,null,null,null,null,null,true,true,false]
[null,null,null,null,null,null,null,null,null,true,true,false]
[null,null,null,null,null,null,null,null,null,true,true,false]
[null,null,null,null,null,null,null,null,null,true,true,false]
[null,null,null,null,null,null,null,null,null,true,true,false]
[null,null,null,null,null,null,null,null,null,true,true,false]
[null,null,null,null,null,null,null,null,null,true,true,false]
[null,null,null,null,null,null,null,null,null,true,true,false]
[null,null,null,null,null,null,null,null,null,true,true,false]
[null,null,null,null,null,null,null,null,null,true,true,false]
[null,null,null,null,null,null,null,null,null,true,true,false]
[null,null,null,null,null,null,null,null,null,true,true,false]
[null,null,null,null,null,null,null,null,null,true,true,false]
[null,null,null,null,null,null,null,null,null,true,true,false]
[null,null,null,null,null,null,null,null,null,true,true,false]
[null,null,null,null,null,null,null,null,null,{"$f":"TODAY()>=I518","v":true},{"$f":"I518-TODAY()<=1","v":true},{"$f":"AND((I518-TODAY())<=1,TODAY()<I518)","v":false}]
[null,null,null,null,null,null,null,null,null,true,true,false]
[null,null,null,null,null,null,null,null,null,true,true,false]
[null,null,null,null,null,null,null,null,null,true,true,false]
[null,null,null,null,null,null,null,null,null,true,true,false]
[null,null,null,null,null,null,null,null,null,true,true,false]
[null,null,null,null,null,null,null,null,null,true,true,false]
[null,null,null,null,null,null,null,null,null,true,true,false]
[null,null,null,null,null,null,null,null,null,true,true,false]
[null,null,null,null,null,null,null,null,null,true,true,false]
[null,null,null,null,null,null,null,null,null,true,true,false]
[null,null,null,null,null,null,null,null,null,true,true,false]
[null,null,null,null,null,null,null,null,null,true,true,false]
[null,null,null,null,null,null,null,null,null,true,true,false]
[null,null,null,null,null,null,null,null,null,true,true,false]
[null,null,null,null,null,null,null,null,null,true,true,false]
[null,null,null,null,null,null,null,null,null,true,true,false]
[null,null,null,null,null,null,null,null,null,true,true,false]
[null,null,null,null,null,null,null,null,null,true,true,false]
[null,null,null,null,null,null,null,null,null,true,true,false]
[null,null,null,null,null,null,null,null,null,true,true,false]
[null,null,null,null,null,null,null,null,null,true,true,false]
[null,null,null,null,null,null,null,null,null,true,true,false]
[null,null,null,null,null,null,null,null,null,true,true,false]
[null,null,null,null,null,null,null,null,null,true,true,false]
[null,null,null,null,null,null,null,null,null,true,true,false]
[null,null,null,null,null,null,null,null,null,true,true,false]
[null,null,null,null,null,null,null,null,null,true,true,false]
[null,null,null,null,null,null,null,null,null,true,true,false]
[null,null,null,null,null,null,null,null,null,true,true,false]
[null,null,null,null,null,null,null,null,null,true,true,false]
[null,null,null,null,null,null,null,null,null,true,true,false]
[null,null,null,null,null,null,null,null,null,true,true,false]
[null,null,null,null,null,null,null,null,null,true,true,false]
[null,null,null,null,null,null,null,null,null,true,true,false]
[null,null,null,null,null,null,null,null,null,true,true,false]
[null,null,null,null,null,null,null,null,null,true,true,false]
[null,null,null,null,null,null,null,null,null,true,true,false]
[null,null,null,null,null,null,null,null,null,true,true,false]
[null,null,null,null,null,null,null,null,null,true,true,false]
[null,null,null,null,null,null,null,null,null,true,true,false]
[null,null,null,null,null,null,null,null,null,true,true,false]
[null,null,null,null,null,null,null,null,null,true,true,false]
[null,null,null,null,null,null,null,null,null,true,true,false]
[null,null,null,null,null,null,null,null,null,true,true,false]
[null,null,null,null,null,null,null,null,null,true,true,false]
[null,null,null,null,null,null,null,null,null,true,true,false]
[null,null,null,null,null,null,null,null,null,true,true,false]
[null,null,null,null,null,null,null,null,null,true,true,false]
[null,null,null,null,null,null,null,null,null,true,true,false]
[null,null,null,null,null,null,null,null,null,true,true,false]
[null,null,null,null,null,null,null,null,null,true,true,false]
[null,null,null,null,null,null,null,null,null,true,true,false]
[null,null,null,null,null,null,null,null,null,true,true,false]
[null,null,null,null,null,null,null,null,null,true,true,false]
[null,null,null,null,null,null,null,null,null,true,true,false]
[null,null,null,null,null,null,null,null,null,true,true,false]
[null,null,null,null,null,null,null,null,null,true,true,false]
[null,null,null,null,null,null,null,null,null,true,true,false]
[null,null,null,null,null,null,null,null,null,true,true,false]
[null,null,null,null,null,null,null,null,null,true,true,false]
[null,null,null,null,null,null,null,null,null,true,true,false]
[null,null,null,null,null,null,null,null,null,true,true,false]
[null,null,null,null,null,null,null,null,null,true,true,false]
[null,null,null,null,null,null,null,null,null,{"$f":"TODAY()>=I582","v":true},{"$f":"I582-TODAY()<=1","v":true},{"$f":"AND((I582-TODAY())<=1,TODAY()<I582)","v":false}]
[null,null,null,null,null,null,null,null,null,true,true,false]
[null,null,null,null,null,null,null,null,null,true,true,false]
[null,null,null,null,null,null,null,null,null,true,true,false]
[null,null,null,null,null,null,null,null,null,true,true,false]
[null,null,null,null,null,null,null,null,null,true,true,false]
[null,null,null,null,null,null,null,null,null,true,true,false]
[null,null,null,null,null,null,null,null,null,true,true,false]
[null,null,null,null,null,null,null,null,null,true,true,false]
[null,null,null,null,null,null,null,null,null,true,true,false]
[null,null,null,null,null,null,null,null,null,true,true,false]
[null,null,null,null,null,null,null,null,null,true,true,false]
[null,null,null,null,null,null,null,null,null,true,true,false]
[null,null,null,null,null,null,null,null,null,true,true,false]
[null,null,null,null,null,null,null,null,null,true,true,false]
[null,null,null,null,null,null,null,null,null,true,true,false]
[null,null,null,null,null,null,null,null,null,true,true,false]
[null,null,null,null,null,null,null,null,null,true,true,false]
[null,null,null,null,null,null,null,null,null,true,true,false]
[null,null,null,null,null,null,null,null,null,true,true,false]
[null,null,null,null,null,null,null,null,null,true,true,false]
[null,null,null,null,null,null,null,null,null,true,true,false]
[null,null,null,null,null,null,null,null,null,true,true,false]
[null,null,null,null,null,null,null,null,null,true,true,false]
[null,null,null,null,null,null,null,null,null,true,true,false]
[null,null,null,null,null,null,null,null,null,true,true,false]
[null,null,null,null,null,null,null,null,null,true,true,false]
[null,null,null,null,null,null,null,null,null,true,true,false]
[null,null,null,null,null,null,null,null,null,true,true,false]
[null,null,null,null,null,null,null,null,null,true,true,false]
[null,null,null,null,null,null,null,null,null,true,true,false]
[null,null,null,null,null,null,null,null,null,true,true,false]
[null,null,null,null,null,null,null,null,null,true,true,false]
[null,null,null,null,null,null,null,null,null,true,true,false]
[null,null,null,null,null,null,null,null,null,true,true,false]
[null,null,null,null,null,null,null,null,null,true,true,false]
[null,null,null,null,null,null,null,null,null,true,true,false]
[null,null,null,null,null,null,null,null,null,true,true,false]
[null,null,null,null,null,null,null,null,null,true,true,false]
[null,null,null,null,null,null,null,null,null,true,true,false]
[null,null,null,null,null,null,null,null,null,true,true,false]
[null,null,null,null,null,null,null,null,null,true,true,false]
[null,null,null,null,null,null,null,null,null,true,true,false]
[null,null,null,null,null,null,null,null,null,true,true,false]
[null,null,null,null,null,null,null,null,null,true,true,false]
[null,null,null,null,null,null,null,null,null,true,true,false]
[null,null,null,null,null,null,null,null,null,true,true,false]
[null,null,null,null,null,null,null,null,null,true,true,false]
[null,null,null,null,null,null,null,null,null,true,true,false]
[null,null,null,null,null,null,null,null,null,true,true,false]
[null,null,null,null,null,null,null,null,null,true,true,false]
[null,null,null,null,null,null,null,null,null,true,true,false]
[null,null,null,null,null,null,null,null,null,true,true,false]
[null,null,null,null,null,null,null,null,null,true,true,false]
[null,null,null,null,null,null,null,null,null,true,true,false]
[null,null,null,null,null,null,null,null,null,true,true,false]
[null,null,null,null,null,null,null,null,null,true,true,false]
[null,null,null,null,null,null,null,null,null,true,true,false]
[null,null,null,null,null,null,null,null,null,true,true,false]
[null,null,null,null,null,null,null,null,null,true,true,false]
[null,null,null,null,null,null,null,null,null,true,true,false]
[null,null,null,null,null,null,null,null,null,true,true,false]
[null,null,null,null,null,null,null,null,null,true,true,false]
[null,null,null,null,null,null,null,null,null,true,true,false]
[null,null,null,null,null,null,null,null,null,{"$f":"TODAY()>=I646","v":true},{"$f":"I646-TODAY()<=1","v":true},{"$f":"AND((I646-TODAY())<=1,TODAY()<I646)","v":false}]
[null,null,null,null,null,null,null,null,null,true,true,false]
[null,null,null,null,null,null,null,null,null,true,true,false]
[null,null,null,null,null,null,null,null,null,true,true,false]
[null,null,null,null,null,null,null,null,null,true,true,false]
[null,null,null,null,null,null,null,null,null,true,true,false]
[null,null,null,null,null,null,null,null,null,true,true,false]
[null,null,null,null,null,null,null,null,null,true,true,false]
[null,null,null,null,null,null,null,null,null,true,true,false]
[null,null,null,null,null,null,null,null,null,true,true,false]
[null,null,null,null,null,null,null,null,null,true,true,false]
[null,null,null,null,null,null,null,null,null,true,true,false]
[null,null,null,null,null,null,null,null,null,true,true,false]
[null,null,null,null,null,null,null,null,null,true,true,false]
[null,null,null,null,null,null,null,null,null,true,true,false]
[null,null,null,null,null,null,null,null,null,true,true,false]
[null,null,null,null,null,null,null,null,null,true,true,false]
[null,null,null,null,null,null,null,null,null,true,true,false]
[null,null,null,null,null,null,null,null,null,true,true,false]
[null,null,null,null,null,null,null,null,null,true,true,false]
[null,null,null,null,null,null,null,null,null,true,true,false]
[null,null,null,null,null,null,null,null,null,true,true,false]
[null,null,null,null,null,null,null,null,null,true,true,false]
[null,null,null,null,null,null,null,null,null,true,true,false]
[null,null,null,null,null,null,null,null,null,true,true,false]
[null,null,null,null,null,null,null,null,null,true,true,false]
[null,null,null,null,null,null,null,null,null,true,true,false]
[null,null,null,null,null,null,null,null,null,true,true,false]
[null,null,null,null,null,null,null,null,null,true,true,false]
[null,null,null,null,null,null,null,null,null,true,true,false]
[null,null,null,null,null,null,null,null,null,true,true,false]
[null,null,null,null,null,null,null,null,null,true,true,false]
[null,null,null,null,null,null,null,null,null,true,true,false]
[null,null,null,null,null,null,null,null,null,true,true,false]
[null,null,null,null,null,null,null,null,null,true,true,false]
[null,null,null,null,null,null,null,null,null,true,true,false]
[null,null,null,null,null,null,null,null,null,true,true,false]
[null,null,null,null,null,null,null,null,null,true,true,false]
[null,null,null,null,null,null,null,null,null,true,true,false]
[null,null,null,null,null,null,null,null,null,true,true,false]
[null,null,null,null,null,null,null,null,null,true,true,false]
[null,null,null,null,null,null,null,null,null,true,true,false]
[null,null,null,null,null,null,null,null,null,true,true,false]
[null,null,null,null,null,null,null,null,null,true,true,false]
[null,null,null,null,null,null,null,null,null,true,true,false]
[null,null,null,null,null,null,null,null,null,true,true,false]
[null,null,null,null,null,null,null,null,null,true,true,false]
[null,null,null,null,null,null,null,null,null,true,true,false]
[null,null,null,null,null,null,null,null,null,true,true,false]
[null,null,null,null,null,null,null,null,null,true,true,false]
[null,null,null,null,null,null,null,null,null,true,true,false]
[null,null,null,null,null,null,null,null,null,true,true,false]
[null,null,null,null,null,null,null,null,null,true,true,false]
[null,null,null,null,null,null,null,null,null,true,true,false]
[null,null,null,null,null,null,null,null,null,true,true,false]
[null,null,null,null,null,null,null,null,null,true,true,false]
[null,null,null,null,null,null,null,null,null,true,true,false]
[null,null,null,null,null,null,null,null,null,true,true,false]
[null,null,null,null,null,null,null,null,null,true,true,false]
[null,null,null,null,null,null,null,null,null,true,true,false]
[null,null,null,null,null,null,null,null,null,true,true,false]
[null,null,null,null,null,null,null,null,null,true,true,false]
[null,null,null,null,null,null,null,null,null,true,true,false]
[null,null,null,null,null,null,null,null,null,true,true,false]
[null,null,null,null,null,null,null,null,null,{"$f":"TODAY()>=I710","v":true},{"$f":"I710-TODAY()<=1","v":true},{"$f":"AND((I710-TODAY())<=1,TODAY()<I710)","v":false}]
[null,null,null,null,null,null,null,null,null,true,true,false]
[null,null,null,null,null,null,null,null,null,true,true,false]
[null,null,null,null,null,null,null,null,null,true,true,false]
[null,null,null,null,null,null,null,null,null,true,true,false]
[null,null,null,null,null,null,null,null,null,true,true,false]
[null,null,null,null,null,null,null,null,null,true,true,false]
[null,null,null,null,null,null,null,null,null,true,true,false]
[null,null,null,null,null,null,null,null,null,true,true,false]
[null,null,null,null,null,null,null,null,null,true,true,false]
[null,null,null,null,null,null,null,null,null,true,true,false]
[null,null,null,null,null,null,null,null,null,true,true,false]
[null,null,null,null,null,null,null,null,null,true,true,false]
[null,null,null,null,null,null,null,null,null,true,true,false]
[null,null,null,null,null,null,null,null,null,true,true,false]
[null,null,null,null,null,null,null,null,null,true,true,false]
[null,null,null,null,null,null,null,null,null,true,true,false]
[null,null,null,null,null,null,null,null,null,true,true,false]
[null,null,null,null,null,null,null,null,null,true,true,false]
[null,null,null,null,null,null,null,null,null,true,true,false]
[null,null,null,null,null,null,null,null,null,true,true,false]
[null,null,null,null,null,null,null,null,null,true,true,false]
[null,null,null,null,null,null,null,null,null,true,true,false]
[null,null,null,null,null,null,null,null,null,true,true,false]
[null,null,null,null,null,null,null,null,null,true,true,false]
[null,null,null,null,null,null,null,null,null,true,true,false]
[null,null,null,null,null,null,null,null,null,true,true,false]
[null,null,null,null,null,null,null,null,null,true,true,false]
[null,null,null,null,null,null,null,null,null,true,true,false]
[null,null,null,null,null,null,null,null,null,true,true,false]
[null,null,null,null,null,null,null,null,null,true,true,false]
[null,null,null,null,null,null,null,null,null,true,true,false]
[null,null,null,null,null,null,null,null,null,true,true,false]
[null,null,null,null,null,null,null,null,null,true,true,false]
[null,null,null,null,null,null,null,null,null,true,true,false]
[null,null,null,null,null,null,null,null,null,true,true,false]
[null,null,null,null,null,null,null,null,null,true,true,false]
[null,null,null,null,null,null,null,null,null,true,true,false]
[null,null,null,null,null,null,null,null,null,true,true,false]
[null,null,null,null,null,null,null,null,null,true,true,false]
[null,null,null,null,null,null,null,null,null,true,true,false]
[null,null,null,null,null,null,null,null,null,true,true,false]
[null,null,null,null,null,null,null,null,null,true,true,false]
[null,null,null,null,null,null,null,null,null,true,true,false]
[null,null,null,null,null,null,null,null,null,true,true,false]
[null,null,null,null,null,null,null,null,null,true,true,false]
[null,null,null,null,null,null,null,null,null,true,true,false]
[null,null,null,null,null,null,null,null,null,true,true,false]
[null,null,null,null,null,null,null,null,null,true,true,false]
[null,null,null,null,null,null,null,null,null,true,true,false]
[null,null,null,null,null,null,null,null,null,true,true,false]
[null,null,null,null,null,null,null,null,null,true,true,false]
[null,null,null,null,null,null,null,null,null,true,true,false]
[null,null,null,null,null,null,null,null,null,true,true,false]
[null,null,null,null,null,null,null,null,null,true,true,false]
[null,null,null,null,null,null,null,null,null,true,true,false]
[null,null,null,null,null,null,null,null,null,true,true,false]
[null,null,null,null,null,null,null,null,null,true,true,false]
[null,null,null,null,null,null,null,null,null,true,true,false]
[null,null,null,null,null,null,null,null,null,true,true,false]
[null,null,null,null,null,null,null,null,null,true,true,false]
[null,null,null,null,null,null,null,null,null,true,true,false]
[null,null,null,null,null,null,null,null,null,true,true,false]
[null,null,null,null,null,null,null,null,null,true,true,false]
[null,null,null,null,null,null,null,null,null,{"$f":"TODAY()>=I774","v":true},{"$f":"I774-TODAY()<=1","v":true},{"$f":"AND((I774-TODAY())<=1,TODAY()<I774)","v":false}]
[null,null,null,null,null,null,null,null,null,true,true,false]
[null,null,null,null,null,null,null,null,null,true,true,false]
[null,null,null,null,null,null,null,null,null,true,true,false]
[null,null,null,null,null,null,null,null,null,true,true,false]
[null,null,null,null,null,null,null,null,null,true,true,false]
[null,null,null,null,null,null,null,null,null,true,true,false]
[null,null,null,null,null,null,null,null,null,true,true,false]
[null,null,null,null,null,null,null,null,null,true,true,false]
[null,null,null,null,null,null,null,null,null,true,true,false]
[null,null,null,null,null,null,null,null,null,true,true,false]
[null,null,null,null,null,null,null,null,null,true,true,false]
[null,null,null,null,null,null,null,null,null,true,true,false]
[null,null,null,null,null,null,null,null,null,true,true,false]
[null,null,null,null,null,null,null,null,null,true,true,false]
[null,null,null,null,null,null,null,null,null,true,true,false]
[null,null,null,null,null,null,null,null,null,true,true,false]
[null,null,null,null,null,null,null,null,null,true,true,false]
[null,null,null,null,null,null,null,null,null,true,true,false]
[null,null,null,null,null,null,null,null,null,true,true,false]
[null,null,null,null,null,null,null,null,null,true,true,false]
[null,null,null,null,null,null,null,null,null,true,true,false]
[null,null,null,null,null,null,null,null,null,true,true,false]
[null,null,null,null,null,null,null,null,null,true,true,false]
[null,null,null,null,null,null,null,null,null,true,true,false]
[null,null,null,null,null,null,null,null,null,true,true,false]
[null,null,null,null,null,null,null,null,null,true,true,false]
[null,null,null,null,null,null,null,null,null,true,true,false]
[null,null,null,null,null,null,null,null,null,true,true,false]
[null,null,null,null,null,null,null,null,null,true,true,false]
[null,null,null,null,null,null,null,null,null,true,true,false]
[null,null,null,null,null,null,null,null,null,true,true,false]
[null,null,null,null,null,null,null,null,null,true,true,false]
[null,null,null,null,null,null,null,null,null,true,true,false]
[null,null,null,null,null,null,null,null,null,true,true,false]
[null,null,null,null,null,null,null,null,null,true,true,false]
[null,null,null,null,null,null,null,null,null,true,true,false]
[null,null,null,null,null,null,null,null,null,true,true,false]
[null,null,null,null,null,null,null,null,null,true,true,false]
[null,null,null,null,null,null,null,null,null,true,true,false]
[null,null,null,null,null,null,null,null,null,true,true,false]
[null,null,null,null,null,null,null,null,null,true,true,false]
[null,null,null,null,null,null,null,null,null,true,true,false]
[null,null,null,null,null,null,null,null,null,true,true,false]
[null,null,null,null,null,null,null,null,null,true,true,false]
[null,null,null,null,null,null,null,null,null,true,true,false]
[null,null,null,null,null,null,null,null,null,true,true,false]
[null,null,null,null,null,null,null,null,null,true,true,false]
[null,null,null,null,null,null,null,null,null,true,true,false]
[null,null,null,null,null,null,null,null,null,true,true,false]
[null,null,null,null,null,null,null,null,null,true,true,false]
[null,null,null,null,null,null,null,null,null,true,true,false]
[null,null,null,null,null,null,null,null,null,true,true,false]
[null,null,null,null,null,null,null,null,null,true,true,false]
[null,null,null,null,null,null,null,null,null,true,true,false]
[null,null,null,null,null,null,null,null,null,true,true,false]
[null,null,null,null,null,null,null,null,null,true,true,false]
[null,null,null,null,null,null,null,null,null,true,true,false]
[null,null,null,null,null,null,null,null,null,true,true,false]
[null,null,null,null,null,null,null,null,null,true,true,false]
[null,null,null,null,null,null,null,null,null,true,true,false]
[null,null,null,null,null,null,null,null,null,true,true,false]
[null,null,null,null,null,null,null,null,null,true,true,false]
[null,null,null,null,null,null,null,null,null,true,true,false]
[null,null,null,null,null,null,null,null,null,{"$f":"TODAY()>=I838","v":true},{"$f":"I838-TODAY()<=1","v":true},{"$f":"AND((I838-TODAY())<=1,TODAY()<I838)","v":false}]
[null,null,null,null,null,null,null,null,null,true,true,false]
[null,null,null,null,null,null,null,null,null,true,true,false]
[null,null,null,null,null,null,null,null,null,true,true,false]
[null,null,null,null,null,null,null,null,null,true,true,false]
[null,null,null,null,null,null,null,null,null,true,true,false]
[null,null,null,null,null,null,null,null,null,true,true,false]
[null,null,null,null,null,null,null,null,null,true,true,false]
[null,null,null,null,null,null,null,null,null,true,true,false]
[null,null,null,null,null,null,null,null,null,true,true,false]
[null,null,null,null,null,null,null,null,null,true,true,false]
[null,null,null,null,null,null,null,null,null,true,true,false]
[null,null,null,null,null,null,null,null,null,true,true,false]
[null,null,null,null,null,null,null,null,null,true,true,false]
[null,null,null,null,null,null,null,null,null,true,true,false]
[null,null,null,null,null,null,null,null,null,true,true,false]
[null,null,null,null,null,null,null,null,null,true,true,false]
[null,null,null,null,null,null,null,null,null,true,true,false]
[null,null,null,null,null,null,null,null,null,true,true,false]
[null,null,null,null,null,null,null,null,null,true,true,false]
[null,null,null,null,null,null,null,null,null,true,true,false]
[null,null,null,null,null,null,null,null,null,true,true,false]
[null,null,null,null,null,null,null,null,null,true,true,false]
[null,null,null,null,null,null,null,null,null,true,true,false]
[null,null,null,null,null,null,null,null,null,true,true,false]
[null,null,null,null,null,null,null,null,null,true,true,false]
[null,null,null,null,null,null,null,null,null,true,true,false]
[null,null,null,null,null,null,null,null,null,true,true,false]
[null,null,null,null,null,null,null,null,null,true,true,false]
[null,null,null,null,null,null,null,null,null,true,true,false]
[null,null,null,null,null,null,null,null,null,true,true,false]
[null,null,null,null,null,null,null,null,null,true,true,false]
[null,null,null,null,null,null,null,null,null,true,true,false]
[null,null,null,null,null,null,null,null,null,true,true,false]
[null,null,null,null,null,null,null,null,null,true,true,false]
[null,null,null,null,null,null,null,null,null,true,true,false]
[null,null,null,null,null,null,null,null,null,true,true,false]
[null,null,null,null,null,null,null,null,null,true,true,false]
[null,null,null,null,null,null,null,null,null,true,true,false]
[null,null,null,null,null,null,null,null,null,true,true,false]
[null,null,null,null,null,null,null,null,null,true,true,false]
[null,null,null,null,null,null,null,null,null,true,true,false]
[null,null,null,null,null,null,null,null,null,true,true,false]
[null,null,null,null,null,null,null,null,null,true,true,false]
[null,null,null,null,null,null,null,null,null,true,true,false]
[null,null,null,null,null,null,null,null,null,true,true,false]
[null,null,null,null,null,null,null,null,null,true,true,false]
[null,null,null,null,null,null,null,null,null,true,true,false]
[null,null,null,null,null,null,null,null,null,true,true,false]
[null,null,null,null,null,null,null,null,null,true,true,false]
[null,null,null,null,null,null,null,null,null,true,true,false]
[null,null,null,null,null,null,null,null,null,true,true,false]
[null,null,null,null,null,null,null,null,null,true,true,false]
[null,null,null,null,null,null,null,null,null,true,true,false]
[null,null,null,null,null,null,null,null,null,true,true,false]
[null,null,null,null,null,null,null,null,null,true,true,false]
[null,null,null,null,null,null,null,null,null,true,true,false]
[null,null,null,null,null,null,null,null,null,true,true,false]
[null,null,null,null,null,null,null,null,null,true,true,false]
[null,null,null,null,null,null,null,null,null,true,true,false]
[null,null,null,null,null,null,null,null,null,true,true,false]
[null,null,null,null,null,null,null,null,null,true,true,false]
[null,null,null,null,null,null,null,null,null,true,true,false]
[null,null,null,null,null,null,null,null,null,true,true,false]
[null,null,null,null,null,null,null,null,null,{"$f":"TODAY()>=I902","v":true},{"$f":"I902-TODAY()<=1","v":true},{"$f":"AND((I902-TODAY())<=1,TODAY()<I902)","v":false}]
[null,null,null,null,null,null,null,null,null,true,true,false]
[null,null,null,null,null,null,null,null,null,true,true,false]
[null,null,null,null,null,null,null,null,null,true,true,false]
[null,null,null,null,null,null,null,null,null,true,true,false]
[null,null,null,null,null,null,null,null,null,true,true,false]
[null,null,null,null,null,null,null,null,null,true,true,false]
[null,null,null,null,null,null,null,null,null,true,true,false]
[null,null,null,null,null,null,null,null,null,true,true,false]
[null,null,null,null,null,null,null,null,null,true,true,false]
[null,null,null,null,null,null,null,null,null,true,true,false]
[null,null,null,null,null,null,null,null,null,true,true,false]
[null,null,null,null,null,null,null,null,null,true,true,false]
[null,null,null,null,null,null,null,null,null,true,true,false]
[null,null,null,null,null,null,null,null,null,true,true,false]
[null,null,null,null,null,null,null,null,null,true,true,false]
[null,null,null,null,null,null,null,null,null,true,true,false]
[null,null,null,null,null,null,null,null,null,true,true,false]
[null,null,null,null,null,null,null,null,null,true,true,false]
[null,null,null,null,null,null,null,null,null,true,true,false]
[null,null,null,null,null,null,null,null,null,true,true,false]
[null,null,null,null,null,null,null,null,null,true,true,false]
[null,null,null,null,null,null,null,null,null,true,true,false]
[null,null,null,null,null,null,null,null,null,true,true,false]
[null,null,null,null,null,null,null,null,null,true,true,false]
[null,null,null,null,null,null,null,null,null,true,true,false]
[null,null,null,null,null,null,null,null,null,true,true,false]
[null,null,null,null,null,null,null,null,null,true,true,false]
[null,null,null,null,null,null,null,null,null,true,true,false]
[null,null,null,null,null,null,null,null,null,true,true,false]
[null,null,null,null,null,null,null,null,null,true,true,false]
[null,null,null,null,null,null,null,null,null,true,true,false]
[null,null,null,null,null,null,null,null,null,true,true,false]
[null,null,null,null,null,null,null,null,null,true,true,false]
[null,null,null,null,null,null,null,null,null,true,true,false]
[null,null,null,null,null,null,null,null,null,true,true,false]
[null,null,null,null,null,null,null,null,null,true,true,false]
[null,null,null,null,null,null,null,null,null,true,true,false]
[null,null,null,null,null,null,null,null,null,true,true,false]
[null,null,null,null,null,null,null,null,null,true,true,false]
[null,null,null,null,null,null,null,null,null,true,true,false]
[null,null,null,null,null,null,null,null,null,true,true,false]
[null,null,null,null,null,null,null,null,null,true,true,false]
[null,null,null,null,null,null,null,null,null,true,true,false]
[null,null,null,null,null,null,null,null,null,true,true,false]
[null,null,null,null,null,null,null,null,null,true,true,false]
[null,null,null,null,null,null,null,null,null,true,true,false]
[null,null,null,null,null,null,null,null,null,true,true,false]
[null,null,null,null,null,null,null,null,null,true,true,false]
[null,null,null,null,null,null,null,null,null,true,true,false]
[null,null,null,null,null,null,null,null,null,true,true,false]
[null,null,null,null,null,null,null,null,null,true,true,false]
[null,null,null,null,null,null,null,null,null,true,true,false]
[null,null,null,null,null,null,null,null,null,true,true,false]
[null,null,null,null,null,null,null,null,null,true,true,false]
[null,null,null,null,null,null,null,null,null,true,true,false]
[null,null,null,null,null,null,null,null,null,true,true,false]
[null,null,null,null,null,null,null,null,null,true,true,false]
[null,null,null,null,null,null,null,null,null,true,true,false]
[null,null,null,null,null,null,null,null,null,true,true,false]
[null,null,null,null,null,null,null,null,null,true,true,false]
[null,null,null,null,null,null,null,null,null,true,true,false]
[null,null,null,null,null,null,null,null,null,true,true,false]
[null,null,null,null,null,null,null,null,null,true,true,false]
[null,null,null,null,null,null,null,null,null,{"$f":"TODAY()>=I966","v":true},{"$f":"I966-TODAY()<=1","v":true},{"$f":"AND((I966-TODAY())<=1,TODAY()<I966)","v":false}]
[null,null,null,null,null,null,null,null,null,true,true,false]
[null,null,null,null,null,null,null,null,null,true,true,false]
[null,null,null,null,null,null,null,null,null,true,true,false]
[null,null,null,null,null,null,null,null,null,true,true,false]
[null,null,null,null,null,null,null,null,null,true,true,false]
[null,null,null,null,null,null,null,null,null,true,true,false]
[null,null,null,null,null,null,null,null,null,true,true,false]
[null,null,null,null,null,null,null,null,null,true,true,false]
[null,null,null,null,null,null,null,null,null,true,true,false]
[null,null,null,null,null,null,null,null,null,true,true,false]
[null,null,null,null,null,null,null,null,null,true,true,false]
[null,null,null,null,null,null,null,null,null,true,true,false]
[null,null,null,null,null,null,null,null,null,true,true,false]
[null,null,null,null,null,null,null,null,null,true,true,false]
[null,null,null,null,null,null,null,null,null,true,true,false]
[null,null,null,null,null,null,null,null,null,true,true,false]
[null,null,null,null,null,null,null,null,null,true,true,false]
[null,null,null,null,null,null,null,null,null,true,true,false]
[null,null,null,null,null,null,null,null,null,true,true,false]
[null,null,null,null,null,null,null,null,null,true,true,false]
[null,null,null,null,null,null,null,null,null,true,true,false]
[null,null,null,null,null,null,null,null,null,true,true,false]
[null,null,null,null,null,null,null,null,null,true,true,false]
[null,null,null,null,null,null,null,null,null,true,true,false]
[null,null,null,null,null,null,null,null,null,true,true,false]
[null,null,null,null,null,null,null,null,null,true,true,false]
[null,null,null,null,null,null,null,null,null,true,true,false]
[null,null,null,null,null,null,null,null,null,true,true,false]
[null,null,null,null,null,null,null,null,null,true,true,false]
[null,null,null,null,null,null,null,null,null,true,true,false]
[null,null,null,null,null,null,null,null,null,true,true,false]
[null,null,null,null,null,null,null,null,null,true,true,false]
[null,null,null,null,null,null,null,null,null,true,true,false]
[null,null,null,null,null,null,null,null,null,true,true,false]
[null,null,null,null,null,null,null,null,null,true,true,false]
[null,null,null,null,null,null,null,null,null,true,true,false]
[null,null,null,null,null,null,null,null,null,true,true,false]
[null,null,null,null,null,null,null,null,null,true,true,false]
[null,null,null,null,null,null,null,null,null,true,true,false]
[null,null,null,null,null,null,null,null,null,true,true,false]
[null,null,null,null,null,null,null,null,null,true,true,false]
[null,null,null,null,null,null,null,null,null,true,true,false]
[null,null,null,null,null,null,null,null,null,true,true,false]
[null,null,null,null,null,null,null,null,null,true,true,false]
[null,null,null,null,null,null,null,null,null,true,true,false]
[null,null,null,null,null,null,null,null,null,true,true,false]
[null,null,null,null,null,null,null,null,null,true,true,false]
[null,null,null,null,null,null,null,null,null,true,true,false]
[null,null,null,null,null,null,null,null,null,true,true,false]
[null,null,null,null,null,null,null,null,null,true,true,false]
[null,null,null,null,null,null,null,null,null,true,true,false]
[null,null,null,null,null,null,null,null,null,true,true,false]
[null,null,null,null,null,null,null,null,null,true,true,false]
[null,null,null,null,null,null,null,null,null,true,true,false]
[null,null,null,null,null,null,null,null,null,true,true,false]
[null,null,null,null,null,null,null,null,null,true,true,false]
[null,null,null,null,null,null,null,null,null,true,true,false]
[null,null,null,null,null,null,null,null,null,true,true,false]
[null,null,null,null,null,null,null,null,null,true,true,false]
[null,null,null,null,null,null,null,null,null,true,true,false]
[null,null,null,null,null,null,null,null,null,true,true,false]
[null,null,null,null,null,null,null,null,null,true,true,false]
[null,null,null,null,null,null,null,null,null,true,true,false]
[null,null,null,null,null,null,null,null,null,{"$f":"TODAY()>=I1030","v":true},{"$f":"I1030-TODAY()<=1","v":true},{"$f":"AND((I1030-TODAY())<=1,TODAY()<I1030)","v":false}]
[null,null,null,null,null,null,null,null,null,true,true,false]
[null,null,null,null,null,null,null,null,null,true,true,false]
[null,null,null,null,null,null,null,null,null,true,true,false]
[null,null,null,null,null,null,null,null,null,true,true,false]
[null,null,null,null,null,null,null,null,null,true,true,false]
[null,null,null,null,null,null,null,null,null,true,true,false]
[null,null,null,null,null,null,null,null,null,true,true,false]
[null,null,null,null,null,null,null,null,null,true,true,false]
[null,null,null,null,null,null,null,null,null,true,true,false]
[null,null,null,null,null,null,null,null,null,true,true,false]
[null,null,null,null,null,null,null,null,null,true,true,false]
[null,null,null,null,null,null,null,null,null,true,true,false]
[null,null,null,null,null,null,null,null,null,true,true,false]
[null,null,null,null,null,null,null,null,null,true,true,false]
[null,null,null,null,null,null,null,null,null,true,true,false]
[null,null,null,null,null,null,null,null,null,true,true,false]
[null,null,null,null,null,null,null,null,null,true,true,false]
[null,null,null,null,null,null,null,null,null,true,true,false]
[null,null,null,null,null,null,null,null,null,true,true,false]
[null,null,null,null,null,null,null,null,null,true,true,false]
[null,null,null,null,null,null,null,null,null,true,true,false]
[null,null,null,null,null,null,null,null,null,true,true,false]
[null,null,null,null,null,null,null,null,null,true,true,false]
[null,null,null,null,null,null,null,null,null,true,true,false]
[null,null,null,null,null,null,null,null,null,true,true,false]
[null,null,null,null,null,null,null,null,null,true,true,false]
[null,null,null,null,null,null,null,null,null,true,true,false]
[null,null,null,null,null,null,null,null,null,true,true,false]
[null,null,null,null,null,null,null,null,null,true,true,false]
[null,null,null,null,null,null,null,null,null,true,true,false]
[null,null,null,null,null,null,null,null,null,true,true,false]
[null,null,null,null,null,null,null,null,null,true,true,false]
[null,null,null,null,null,null,null,null,null,true,true,false]
[null,null,null,null,null,null,null,null,null,true,true,false]
[null,null,null,null,null,null,null,null,null,true,true,false]
[null,null,null,null,null,null,null,null,null,true,true,false]
[null,null,null,null,null,null,null,null,null,true,true,false]
[null,null,null,null,null,null,null,null,null,true,true,false]
[null,null,null,null,null,null,null,null,null,true,true,false]
[null,null,null,null,null,null,null,null,null,true,true,false]
[null,null,null,null,null,null,null,null,null,true,true,false]
[null,null,null,null,null,null,null,null,null,true,true,false]
[null,null,null,null,null,null,null,null,null,true,true,false]
[null,null,null,null,null,null,null,null,null,true,true,false]
[null,null,null,null,null,null,null,null,null,true,true,false]
[null,null,null,null,null,null,null,null,null,true,true,false]
[null,null,null,null,null,null,null,null,null,true,true,false]
[null,null,null,null,null,null,null,null,null,true,true,false]
[null,null,null,null,null,null,null,null,null,true,true,false]
[null,null,null,null,null,null,null,null,null,true,true,false]
[null,null,null,null,null,null,null,null,null,true,true,false]
[null,null,null,null,null,null,null,null,null,true,true,false]
[null,null,null,null,null,null,null,null,null,true,true,false]
[null,null,null,null,null,null,null,null,null,true,true,false]
[null,null,null,null,null,null,null,null,null,true,true,false]
[null,null,null,null,null,null,null,null,null,true,true,false]
[null,null,null,null,null,null,null,null,null,true,true,false]
[null,null,null,null,null,null,null,null,null,true,true,false]
[null,null,null,null,null,null,null,null,null,true,true,false]
[null,null,null,null,null,null,null,null,null,true,true,false]
[null,null,null,null,null,null,null,null,null,true,true,false]
[null,null,null,null,null,null,null,null,null,true,true,false]
[null,null,null,null,null,null,null,null,null,true,true,false]
[null,null,null,null,null,null,null,null,null,{"$f":"TODAY()>=I1094","v":true},{"$f":"I1094-TODAY()<=1","v":true},{"$f":"AND((I1094-TODAY())<=1,TODAY()<I1094)","v":false}]
[null,null,null,null,null,null,null,null,null,true,true,false]
[null,null,null,null,null,null,null,null,null,true,true,false]
[null,null,null,null,null,null,null,null,null,true,true,false]
[null,null,null,null,null,null,null,null,null,true,true,false]
[null,null,null,null,null,null,null,null,null,true,true,false]
[null,null,null,null,null,null,null,null,null,true,true,false]
[null,null,null,null,null,null,null,null,null,true,true,false]
[null,null,null,null,null,null,null,null,null,true,true,false]
[null,null,null,null,null,null,null,null,null,true,true,false]
[null,null,null,null,null,null,null,null,null,true,true,false]
[null,null,null,null,null,null,null,null,null,true,true,false]
[null,null,null,null,null,null,null,null,null,true,true,false]
[null,null,null,null,null,null,null,null,null,true,true,false]
[null,null,null,null,null,null,null,null,null,true,true,false]
[null,null,null,null,null,null,null,null,null,true,true,false]
[null,null,null,null,null,null,null,null,null,true,true,false]
[null,null,null,null,null,null,null,null,null,true,true,false]
[null,null,null,null,null,null,null,null,null,true,true,false]
[null,null,null,null,null,null,null,null,null,true,true,false]
[null,null,null,null,null,null,null,null,null,true,true,false]
[null,null,null,null,null,null,null,null,null,true,true,false]
[null,null,null,null,null,null,null,null,null,true,true,false]
[null,null,null,null,null,null,null,null,null,true,true,false]
[null,null,null,null,null,null,null,null,null,true,true,false]
[null,null,null,null,null,null,null,null,null,true,true,false]
[null,null,null,null,null,null,null,null,null,true,true,false]
[null,null,null,null,null,null,null,null,null,true,true,false]
[null,null,null,null,null,null,null,null,null,true,true,false]
[null,null,null,null,null,null,null,null,null,true,true,false]
[null,null,null,null,null,null,null,null,null,true,true,false]
[null,null,null,null,null,null,null,null,null,true,true,false]
[null,null,null,null,null,null,null,null,null,true,true,false]
[null,null,null,null,null,null,null,null,null,true,true,false]
[null,null,null,null,null,null,null,null,null,true,true,false]
[null,null,null,null,null,null,null,null,null,true,true,false]
[null,null,null,null,null,null,null,null,null,true,true,false]
[null,null,null,null,null,null,null,null,null,true,true,false]
[null,null,null,null,null,null,null,null,null,true,true,false]
[null,null,null,null,null,null,null,null,null,true,true,false]
[null,null,null,null,null,null,null,null,null,true,true,false]
[null,null,null,null,null,null,null,null,null,true,true,false]
[null,null,null,null,null,null,null,null,null,true,true,false]
[null,null,null,null,null,null,null,null,null,true,true,false]
[null,null,null,null,null,null,null,null,null,true,true,false]
[null,null,null,null,null,null,null,null,null,true,true,false]
[null,null,null,null,null,null,null,null,null,true,true,false]
[null,null,null,null,null,null,null,null,null,true,true,false]
[null,null,null,null,null,null,null,null,null,true,true,false]
[null,null,null,null,null,null,null,null,null,true,true,false]
[null,null,null,null,null,null,null,null,null,true,true,false]
[null,null,null,null,null,null,null,null,null,true,true,false]
[null,null,null,null,null,null,null,null,null,true,true,false]
[null,null,null,null,null,null,null,null,null,true,true,false]
[null,null,null,null,null,null,null,null,null,true,true,false]
[null,null,null,null,null,null,null,null,null,true,true,false]
[null,null,null,null,null,null,null,null,null,true,true,false]
[null,null,null,null,null,null,null,null,null,true,true,false]
[null,null,null,null,null,null,null,null,null,true,true,false]
[null,null,null,null,null,null,null,null,null,true,true,false]
[null,null,null,null,null,null,null,null,null,true,true,false]
[null,null,null,null,null,null,null,null,null,true,true,false]
[null,null,null,null,null,null,null,null,null,true,true,false]
[null,null,null,null,null,null,null,null,null,true,true,false]
[null,null,null,null,null,null,null,null,null,{"$f":"TODAY()>=I1158","v":true},true,false]
[null,null,null,null,null,null,null,null,null,{"$f":"TODAY()>=I1159","v":true},true,false]

{"sheet":"3.11,2018","index":2,"n_rows":27,"n_cols":19,"rows_kept":27,"cut":false,"hidden":false,"merged":[[12,4,12,7],[12,8,12,10],[15,0,17,0],[15,1,15,3],[15,4,15,7],[15,8,15,10],[13,8,13,10],[14,8,14,10],[5,0,6,18],[9,0,11,0],[9,1,9,3],[9,4,9,7],[9,8,9,10],[26,1,26,2],[26,11,26,12],[24,11,25,12],[24,1,25,2],[24,0,25,0],[22,8,22,18],[7,0,7,10],[7,11,7,18],[8,0,8,10],[8,11,9,11],[18,0,18,18],[19,8,19,18],[20,8,20,18],[21,8,21,18],[8,12,9,12],[8,13,8,14],[8,15,9,15],[8,16,8,17],[8,18,9,18],[12,0,14,0],[12,1,12,3]]}
[null,null,{"$f":"TODAY()","v":"2018-11-03"}]
[]
[]
[]
[]
["التقرير اليومي للعمليات عن مجريات التشغيل والحضور لجميع القطاعات"]
[]
["2018-10-20",null,null,null,null,null,null,null,null,null,null,"إحصائية بأعداد المعتمرين ما بين المدن"]
["التحضير لعموم الشبكة",null,null,null,null,null,null,null,null,null,null,"م","الوكيل","مكة المكرمة",null,"إحصائية المغادرين إلى المدينة المنورة","المدينة المنورة",null,"الإجمالي"]
["المطارات","الجنوبية 18",null,null,"الشمالية 19",null,null,null,"المبنى 20",null,null,null,null,"الإجمالي","الإحصائية بعد المغادرة",null,"الإجمالي","الإحصائية بعد الوصول"]
[null,"ج1","ج2","ج3","ش1","ش2",null,"ش3","م1","م2","م3",1,"أنور سيرفز",7,{"$f":"N11-P11","v":7},null,null,{"$f":"Q11+P11","v":0},{"$f":"R11+O11","v":7}]
[null,null,null,null,null,null,null,null,null,null,null,2,null,null,0,null,null,0,0]
["مكة المكرمة ","الإستقبال (11-12-13)",null,null,"الإسكان 21",null,null,null," النظام ",null,null,3,null,null,0,null,null,0,0]
[null,"مكة1","مكة2","مكة3","إسكان1","إسكان2",null,"إسكان3","نظام1",null,null,4,null,null,0,null,null,0,0]
[null,null,null,null,null,null,null,null,null,null,null,5,null,null,0,null,null,0,0]
["المدينة المنورة","الإستقبال (23-24-25)",null,null,"الإسكان",null,null,null,"مطار",null,null,6,null,null,0,null,null,0,0]
[null,"مدينة1","مدينة2","مدينة3","إسكان1","إسكان2",null,"إسكان3","م 1","م2 "," م3",7,null,null,0,null,null,0,0]
[]
["تقرير الوصول "]
["فوج","الوكيل","العدد المؤكد","الخطوط","الرحلة","الصالة","رقم المجموعة","القدوم الفعلي","بيان ملاحظات التشغيل"]
[1,"أنور سيرفيز",7,"GF-183","GF-183","الصاله الشماليه","6709 /6696",7,"تم وصول عدد 7 معتمرين التابعين للوكيل أنور سيرفيز الى مطار جده االصالة الشمالية  بدون علم وصول وتم التحرك من مطار جده  الى مكه المكرمه في فندق ثروات الفردوس"]
[2]
[3]
[]
[null,"موظف النظام",null,null,null,null,null,null,null,null,null,"مدير العمليات"]
[]
[null,"محمد سويد",null,null,null,null,null,null,null,null,null,"فــهـد هزازي"]

{"sheet":"03.11.2018","index":3,"n_rows":22,"n_cols":15,"rows_kept":22,"cut":false,"hidden":false,"merged":[[8,0,8,18],[19,14,20,15],[21,14,21,15],[19,3,20,4],[21,3,21,4],[9,9,9,18],[10,9,10,18],[11,9,11,18],[16,9,16,18]]}
[null,null,"03.11.2018"]
[]
[]
[]
[]
[]
[]
[]
[" تقرير التحركات اليومي"]
["فوج","الوكيل","عددالمعتمرين","نوع الحركة","الحركه من ","الحركة الى ","رقم المجموعة","وقت التحرك","تاريخ الحركه","بيان ملاحظات التشغيل"]
[1,"أنور سيرفيز",7,"مغادرة داخليه","مكه المكرمه","المدينه المنوره","6696/6709","06:30:00","2018-10-22","تم تحرك عدد 7معتمرين من مدينه مكه المكرمه الى المدينه المنوره وتم تسكين المعتمرين في فندق ساتر وانتهت الحاله ولم يتم تسجيل أي ملاحظات"]
[]
[]
[]
[]
[]
[]
[]
[]
[null,null,null,"موظف النظام",null,null,null,null,null,null,null,null,null,null,"مدير العمليات"]
[]
[null,null,null,"محمد سويد",null,null,null,null,null,null,null,null,null,null,"فهد هزازي"]

{"sheet":"نمودج الاستقبال","index":4,"n_rows":44,"n_cols":6,"rows_kept":44,"cut":false,"hidden":false,"merged":[[7,0,7,5],[38,0,38,1],[38,2,38,3],[35,0,35,1],[36,0,36,1],[16,0,16,2],[15,3,15,5],[16,3,16,5],[25,0,25,5],[20,4,20,5],[9,0,9,1],[13,0,13,1],[10,0,10,1],[21,0,21,1],[11,0,11,1],[12,0,12,1],[15,0,15,2],[13,2,13,3],[14,2,14,3],[17,3,17,4],[19,2,19,3],[14,0,14,1],[17,0,17,1],[19,0,19,1],[47,0,47,1],[47,2,47,5],[45,0,45,5],[37,0,37,1],[37,2,37,3],[39,0,39,2],[39,3,39,5],[40,0,40,2],[40,3,40,5],[41,0,42,5],[43,0,43,4],[34,0,34,1],[18,4,18,5],[22,0,22,1],[22,2,22,5],[31,0,31,5],[33,0,33,1],[20,0,20,1]]}
[]
[]
[]
[]
[]
[]
[]
["بيان استقبال معتمرين وزوار"]
[]
["عدد المعتمرين ",null,"عدد الجوازات","الجنسية","رقم الفوج","رقم المجموعه"]
["(            )",null,"(            )","(            )","(            )","(            )"]
["ميناء القدوم",null,"مطار جدة O","مطار المدينة المنورة O ","مطار ينبع O","ميناء جدة الإسلامي O"]
["جهة القدوم من المدن",null,null,"O مكة المكرمة","O المدينة المنورة"]
["الوكيل الخارجي:",null,"المشرف",null,"جوال","الغرفة"]
["...........................................",null,".................................................",null,"................................","......................."]
["مكان الإقامة (الفندق)",null,null,"تاريخ الوصول"]
["......................................................",null,null,"      /             /           20"]
["نوع المغادرة",null,null,"موعد المغادرة"]
["مبدئية (            )","نهائية (            )",null,"التاريخ:       /       /     20","زمن التحرك: (          :          )"]
["معلومات التذكرة",null,"الخطوط الجوية: (                                 )",null,"رقم الرحلة: (             )","وقت الرحلة: (      :      )"]
["تاريخ الإقلاع",null,"   /       /       20","صالة الإقلاع:","(                                )"]
["مندوب الإستقبال",null,null,"مكة (         )","مدينة (         )"]
["ملاحظات عامة:",null,"...................................................................................................................."]
[]
[]
[]
[]
[]
[]
[]
[]
["سند استلام جوازات معتمرين "]
[]
["عدد المعتمرين ",null,"عدد الجوازات","الجنسية","رقم الفوج"]
["(            )",null,"(            )","(            )","(            )"]
["ميناء القدوم",null,"مطار جدة O","مطار المدينة المنورة O ","مطار ينبع O","ميناء جدة الإسلامي O"]
["جهة القدوم من المدن",null,null,"O مكة المكرمة","O المدينة المنورة"]
["الوكيل الخارجي:",null,"المشرف",null,"جوال","الغرفة"]
["...........................................",null,".................................................",null,"................................","......................."]
["مكان الإقامة (الفندق)",null,null,"تاريخ الوصول"]
["......................................................"]
["استلمت أنا / ...........................................مندوب شركة: ثروات المشاعر لخدمات المعتمرين . الجوازات المذكور اعدادها بعاليه من مشرف المجموعة الأنفة الذكر بياناته  وعلى هذا تم تسليمة هذا السند كوثيقة بإستلام جوازات المجموعة وسيتم تسليمها له عند مغادرته مدينة (.......................)وعلى هذا تم التوقيع والإستلام."]
[]
["توقيع المستلم:.............................مكة المكرمة(.............) - المدبنة المنورة(.............)"]

{"sheet":"بيان الورديات","index":5,"n_rows":31,"n_cols":16,"rows_kept":31,"cut":false,"hidden":false,"merged":[[25,6,26,6],[15,2,16,2],[15,3,16,3],[15,6,16,6],[3,0,3,6],[14,0,14,6],[24,0,24,6],[4,4,4,5],[15,4,15,5],[4,0,5,0],[4,1,5,1],[4,2,5,2],[4,3,5,3],[4,6,5,6],[15,0,16,0],[15,1,16,1],[25,0,26,0],[25,1,26,1],[25,2,26,2],[25,3,26,3],[25,4,25,5],[3,8,3,15],[4,8,5,8],[4,9,5,9],[4,10,5,10],[4,11,5,11],[4,12,4,13],[4,14,5,14],[4,15,5,15]]}
[]
[]
[]
["الإدارة العامة",null,null,null,null,null,null,null,"مناديب الإستقبال بمطار الملك عبد العزيز الدولي "]
["م","الإسم","المسمى الوظيفي","رمز النداء ","فترات الدوام",null,"الجوال",null,"م","الإسم","المسمى الوظيفي","رمز النداء ","فترات الدوام",null,"الجوال","الجوال"]
[null,null,null,null,"من","إلى",null,null,null,null,null,null,"من","إلى"]
[1,null,null,null,null,null,null,null,1,"الإسم"]
[2,null,null,null,null,null,null,null,2]
[3,null,null,null,null,null,null,null,3]
[4,null,null,null,null,null,null,null,4]
[5]
[6]
[7]
[]
["مناديب الإستقبال بمكة المكرمة",null,null,null,null,null,null,null,"م","التحويلة","المسمى الوظيفي","الموظف"]
["م","الإسم","المسمى الوظيفي","رمز النداء ","فترات الدوام",null,"الجوال",null,1]
[null,null,null,null,"من","إلى",null,null,2]
[1,null,null,null,null,null,null,null,3]
[2,null,null,null,null,null,null,null,4]
[3,null,null,null,null,null,null,null,5]
[4,null,null,null,null,null,null,null,6]
[5,null,null,null,null,null,null,null,7]
[null,null,null,null,null,null,null,null,8,null,null,null,null,null,"                                     "]
[null,null,null,null,null,null,null,null,9]
["مناديب الإستقبال بالمدينة المنورة",null,null,null,null,null,null,null,10]
["م","الإسم","المسمى الوظيفي","رمز النداء ","فترات الدوام",null,"الجوال",null,11]
[null,null,null,null,"من","إلى"]
[1]
[2]
[3]
[4]